Workbook

Sheet Отчет
I1: Форма 2.8
A2: Отчет об исполнении договора управления многоквартирного дома Байкальская, 307
A4: Начала отчетного периода | E4: 2016-01-01
A5: Конец отчетного периода | E5: 2016-12-31
A7: ОБЩАЯ ИНФОРМАЦИЯ
A8: Авансовые платежи потребителей (на начало периода), руб. | J8: =VLOOKUP(O8,АО,3,FALSE) -> 0 | O8: общая1
A9: Переходящие остатки денежных средств (на начало периода), руб. | J9: 0 | O9: общая2
A10: Задолженность потребителей (на начало периода), руб. | J10: 290389.84 | O10: общая3
A11: Начислено за услуги (работы) по содержанию и текущему ремонту, в том числе: | J11: 1021952.59 | O11: общая4
A12: за содержание дома, руб. | J12: 894510.19 | O12: общая5
A13: за текущий ремонт, руб. | J13: 127442.4 | O13: общая6
A14: за услуги управления, руб. | J14: 0 | O14: общая7
A15: Получено денежных средств, в том числе: | J15: 1111262.74 | O15: общая8
A16: денежных средств от собственников/нанимателей помещений, руб. | J16: 1111262.74 | O16: общая9
A17: целевых взносов от собственников/нанимателей помещений, руб. | J17: 0 | O17: общая10
A18: субсидий, руб. | J18: 0 | O18: общая11
A19: денежных средств от использования общего имущества, руб. | J19: 0 | O19: общая12
A20: прочие поступления, руб. | J20: 0 | O20: общая13
A21: Всего денежных средств с учетом остатков, руб. | J21: 1111262.74 | O21: общая14
A22: Авансовые платежи потребителей (на конец периода), руб. | J22: 0 | O22: общая15
A23: Переходящие остатки денежных средств (на конец периода), руб. | J23: 0 | O23: общая16
A24: Задолженность потребителей (на конец периода), руб. | J24: 201079.69 | O24: общая17
A26: ВЫПОЛНЕННЫЕ РАБОТЫ
A27: Наименование работы | F27: Годовая фактическая стоимость работ/услуг (руб.) | H27: Периодичность выполнения работ/оказания услуг | I27: Количество работ (услуг) в детальном перечне | W27: =INDEX(ПТО!$A$39:$B$53,SMALL(IF(ПТО!$L$39=ПТО!L39:L53,ROW(ПТО!$A$39:$B$53)-32,""),ROW()-27)) -> 
A28: =ПТО!A39 -> Работы, выполняемые для надлежащего содержания внутридомовых инженерных систем и конструктивных элементов дома | F28: =VLOOKUP(A28,ПТО!$A$39:$D$53,2,FALSE) -> 445334.1 | H28: =VLOOKUP(A28,ПТО!$A$39:$D$53,3,FALSE) -> Ежемесячно | I28: =VLOOKUP(A28,ПТО!$A$39:$D$53,4,FALSE) -> 12 | O28: =A28 -> Работы, выполняемые для надлежащего содержания внутридомовых инженерных систем и конструктивных элементов дома | R28: СОД
A29: =ПТО!A40 -> Работы по содержанию лифта (лифтов) | F29: =VLOOKUP(A29,ПТО!$A$39:$D$53,2,FALSE) -> 168000 | H29: =VLOOKUP(A29,ПТО!$A$39:$D$53,3,FALSE) -> Ежемесячно | I29: =VLOOKUP(A29,ПТО!$A$39:$D$53,4,FALSE) -> 12 | O29: Работы по содержанию лифта (лифтов) | R29: СОД
A30: =ПТО!A41 -> Работы по содержанию земельного участка с элементами озеленения и благоустройства, иными объектами, предназначенными для обслуживания и эксплуатации многоквартирного дома | F30: =VLOOKUP(A30,ПТО!$A$39:$D$53,2,FALSE) -> 55377.93 | H30: =VLOOKUP(A30,ПТО!$A$39:$D$53,3,FALSE) -> В соответствии с графиком | I30: =VLOOKUP(A30,ПТО!$A$39:$D$53,4,FALSE) -> 12 | O30: Работы по содержанию земельного участка с элементами озеленения и благоустройства, иными объектами, предназначенными для обслуживания и эксплуатации многоквартирного дома | R30: СОД
A31: =ПТО!A42 -> Работы, выполняемые для надлежащего содержания электрооборудования дома | F31: =VLOOKUP(A31,ПТО!$A$39:$D$53,2,FALSE) -> 73279.38 | H31: =VLOOKUP(A31,ПТО!$A$39:$D$53,3,FALSE) -> Ежемесячно | I31: =VLOOKUP(A31,ПТО!$A$39:$D$53,4,FALSE) -> 12 | O31: Работы, выполняемые для надлежащего содержания электрооборудования дома | R31: СОД
A32: =ПТО!A43 -> 0 | F32: =VLOOKUP(A32,ПТО!$A$39:$D$53,2,FALSE) ->  | H32: =VLOOKUP(A32,ПТО!$A$39:$D$53,3,FALSE) ->  | I32: =VLOOKUP(A32,ПТО!$A$39:$D$53,4,FALSE) ->  | O32: 0 | R32: СОД
A33: =ПТО!A44 -> Обеспечение устранения аварий на внутридомовых инженерных системах в многоквартирном доме | F33: =VLOOKUP(A33,ПТО!$A$39:$D$53,2,FALSE) -> 50331.48 | H33: =VLOOKUP(A33,ПТО!$A$39:$D$53,3,FALSE) -> Круглосуточно | I33: =VLOOKUP(A33,ПТО!$A$39:$D$53,4,FALSE) -> 12 | O33: Обеспечение устранения аварий на внутридомовых инженерных системах в многоквартирном доме | R33: СОД
A34: =ПТО!A45 -> Работы по содержанию помещений, входящих в состав общего имущества в многоквартирном доме | F34: =VLOOKUP(A34,ПТО!$A$39:$D$53,2,FALSE) -> 155538.21 | H34: =VLOOKUP(A34,ПТО!$A$39:$D$53,3,FALSE) -> В соответствии с графиком | I34: =VLOOKUP(A34,ПТО!$A$39:$D$53,4,FALSE) -> 12 | O34: Работы по содержанию помещений, входящих в состав общего имущества в многоквартирном доме | R34: СОД
A35: =ПТО!A46 -> Расходы на содержание информационных систем, обеспечивающих сбор, обработку и хранение данных о платежах, выставление платежных документов, снятие показаний приборов учета и т.п. | F35: =VLOOKUP(A35,ПТО!$A$39:$D$53,2,FALSE) -> 63256.24 | H35: =VLOOKUP(A35,ПТО!$A$39:$D$53,3,FALSE) -> Ежемесячно | I35: =VLOOKUP(A35,ПТО!$A$39:$D$53,4,FALSE) -> 12 | O35: Расходы на содержание информационных систем, обеспечивающих сбор, обработку и хранение данных о платежах, выставление платежных документов, снятие показаний приборов учета и т.п. | R35: СОД
A36: =ПТО!A47 -> Работы по обеспечению вывоза бытовых отходов | F36: =VLOOKUP(A36,ПТО!$A$39:$D$53,2,FALSE) -> 111646.58 | H36: =VLOOKUP(A36,ПТО!$A$39:$D$53,3,FALSE) -> В соответствии с графиком | I36: =VLOOKUP(A36,ПТО!$A$39:$D$53,4,FALSE) -> 12 | O36: Работы по обеспечению вывоза бытовых отходов | R36: СОД
A37: =ПТО!A48 -> 0 | F37: =VLOOKUP(A37,ПТО!$A$39:$D$53,2,FALSE) ->  | H37: =VLOOKUP(A37,ПТО!$A$39:$D$53,3,FALSE) ->  | I37: =VLOOKUP(A37,ПТО!$A$39:$D$53,4,FALSE) ->  | O37: 0 | R37: СОД
A38: =ПТО!A49 -> 0 | F38: =VLOOKUP(A38,ПТО!$A$39:$D$53,2,FALSE) ->  | H38: =VLOOKUP(A38,ПТО!$A$39:$D$53,3,FALSE) ->  | I38: =VLOOKUP(A38,ПТО!$A$39:$D$53,4,FALSE) ->  | O38: 0 | R38: СОД
A39: =ПТО!A50 -> 0 | F39: =VLOOKUP(A39,ПТО!$A$39:$D$53,2,FALSE) ->  | H39: =VLOOKUP(A39,ПТО!$A$39:$D$53,3,FALSE) ->  | I39: =VLOOKUP(A39,ПТО!$A$39:$D$53,4,FALSE) ->  | O39: 0 | R39: СОД
A40: =ПТО!A51 -> 0 | F40: =VLOOKUP(A40,ПТО!$A$39:$D$53,2,FALSE) ->  | H40: =VLOOKUP(A40,ПТО!$A$39:$D$53,3,FALSE) ->  | I40: =VLOOKUP(A40,ПТО!$A$39:$D$53,4,FALSE) ->  | O40: 0 | R40: СОД
A41: =ПТО!A52 -> 0 | F41: =VLOOKUP(A41,ПТО!$A$39:$D$53,2,FALSE) ->  | H41: =VLOOKUP(A41,ПТО!$A$39:$D$53,3,FALSE) ->  | I41: =VLOOKUP(A41,ПТО!$A$39:$D$53,4,FALSE) ->  | O41: 0 | R41: СОД
A42: =ПТО!A53 -> 0 | F42: =VLOOKUP(A42,ПТО!$A$39:$D$53,2,FALSE) ->  | H42: =VLOOKUP(A42,ПТО!$A$39:$D$53,3,FALSE) ->  | I42: =VLOOKUP(A42,ПТО!$A$39:$D$53,4,FALSE) ->  | O42: 0 | R42: СОД
A43: =ПТО!A2 -> Корректировка платы за отопление. | F43: =VLOOKUP(A43,ПТО!$A$2:$D$31,4,FALSE) -> -75094.78 | H43: =VLOOKUP(A43,ПТО!$A$2:$D$31,2,FALSE) -> Гкал | I43: =VLOOKUP(A43,ПТО!$A$2:$D$31,3,FALSE) -> 75.86 | O43: Корректировка платы за отопление. | R43: ТР
A44: =ПТО!A3 -> Техническое освидетельствование лифта. | F44: =VLOOKUP(A44,ПТО!$A$2:$D$31,4,FALSE) -> 15000 | H44: =VLOOKUP(A44,ПТО!$A$2:$D$31,2,FALSE) -> шт. | I44: =VLOOKUP(A44,ПТО!$A$2:$D$31,3,FALSE) -> 2 | O44: Техническое освидетельствование лифта. | R44: ТР
A45: =ПТО!A4 -> Вывоз снега с придомовой территории в феврале. | F45: =VLOOKUP(A45,ПТО!$A$2:$D$31,4,FALSE) -> 7798.35 | H45: =VLOOKUP(A45,ПТО!$A$2:$D$31,2,FALSE) -> м/час | I45: =VLOOKUP(A45,ПТО!$A$2:$D$31,3,FALSE) -> 31 | O45: Вывоз снега с придомовой территории в феврале. | R45: ТР
A46: =ПТО!A5 -> Проектирование, монтаж узла учета тепловой энергии. | F46: =VLOOKUP(A46,ПТО!$A$2:$D$31,4,FALSE) -> 120319.41 | H46: =VLOOKUP(A46,ПТО!$A$2:$D$31,2,FALSE) -> шт. | I46: =VLOOKUP(A46,ПТО!$A$2:$D$31,3,FALSE) -> 1 | O46: Проектирование, монтаж узла учета тепловой энергии. | R46: ТР
A47: =ПТО!A6 -> Благоустройство территории (посадка цветов). | F47: =VLOOKUP(A47,ПТО!$A$2:$D$31,4,FALSE) -> 537 | H47: =VLOOKUP(A47,ПТО!$A$2:$D$31,2,FALSE) -> шт. | I47: =VLOOKUP(A47,ПТО!$A$2:$D$31,3,FALSE) -> 23 | O47: Благоустройство территории (посадка цветов). | R47: ТР
A48: =ПТО!A7 -> Замена платы привода дверей в пассажирском лифте. | F48: =VLOOKUP(A48,ПТО!$A$2:$D$31,4,FALSE) -> 26950 | H48: =VLOOKUP(A48,ПТО!$A$2:$D$31,2,FALSE) -> шт. | I48: =VLOOKUP(A48,ПТО!$A$2:$D$31,3,FALSE) -> 1 | O48: Замена платы привода дверей в пассажирском лифте. | R48: ТР
A49: =ПТО!A8 -> Монтаж охранной сигнализации ИТП. | F49: =VLOOKUP(A49,ПТО!$A$2:$D$31,4,FALSE) -> 17233 | H49: =VLOOKUP(A49,ПТО!$A$2:$D$31,2,FALSE) -> шт. | I49: =VLOOKUP(A49,ПТО!$A$2:$D$31,3,FALSE) -> 1 | O49: Монтаж охранной сигнализации ИТП. | R49: ТР
A50: =ПТО!A9 -> Монтаж дверей (вход в подвал). | F50: =VLOOKUP(A50,ПТО!$A$2:$D$31,4,FALSE) -> 26000 | H50: =VLOOKUP(A50,ПТО!$A$2:$D$31,2,FALSE) -> шт. | I50: =VLOOKUP(A50,ПТО!$A$2:$D$31,3,FALSE) -> 2 | O50: Монтаж дверей (вход в подвал). | R50: ТР
A51: =ПТО!A10 -> Восстановление радиаторов отопления в подъезде в замен украденных. | F51: =VLOOKUP(A51,ПТО!$A$2:$D$31,4,FALSE) -> 34670 | H51: =VLOOKUP(A51,ПТО!$A$2:$D$31,2,FALSE) -> секций | I51: =VLOOKUP(A51,ПТО!$A$2:$D$31,3,FALSE) -> 57 | O51: Восстановление радиаторов отопления в подъезде в замен украденных. | R51: ТР
A52: =ПТО!A11 -> Покраска стен в подъезде в цокольном и на 1-ом этаже. | F52: =VLOOKUP(A52,ПТО!$A$2:$D$31,4,FALSE) -> 4960 | H52: =VLOOKUP(A52,ПТО!$A$2:$D$31,2,FALSE) -> м2 | I52: =VLOOKUP(A52,ПТО!$A$2:$D$31,3,FALSE) -> 189.5 | O52: Покраска стен в подъезде в цокольном и на 1-ом этаже. | R52: ТР
A53: =ПТО!A12 -> Монтаж щетинистого покрытия на крыльце. | F53: =VLOOKUP(A53,ПТО!$A$2:$D$31,4,FALSE) -> 3900 | H53: =VLOOKUP(A53,ПТО!$A$2:$D$31,2,FALSE) -> м.п. | I53: =VLOOKUP(A53,ПТО!$A$2:$D$31,3,FALSE) -> 14 | O53: Монтаж щетинистого покрытия на крыльце. | R53: ТР
A54: =ПТО!A13 -> Устройство катка на детской площадке. | F54: =VLOOKUP(A54,ПТО!$A$2:$D$31,4,FALSE) -> 2136 | H54: =VLOOKUP(A54,ПТО!$A$2:$D$31,2,FALSE) -> шт. | I54: =VLOOKUP(A54,ПТО!$A$2:$D$31,3,FALSE) -> 1 | O54: Устройство катка на детской площадке. | R54: ТР
A55: =ПТО!A14 -> Монтаж гирлянд на световые опоры на детской площадке. | F55: =VLOOKUP(A55,ПТО!$A$2:$D$31,4,FALSE) -> 1045 | H55: =VLOOKUP(A55,ПТО!$A$2:$D$31,2,FALSE) -> м.п. | I55: =VLOOKUP(A55,ПТО!$A$2:$D$31,3,FALSE) -> 210 | O55: Монтаж гирлянд на световые опоры на детской площадке. | R55: ТР
A56: =ПТО!A15 -> Монтаж лестницы и калитки (вход на спортивную площадку). | F56: =VLOOKUP(A56,ПТО!$A$2:$D$31,4,FALSE) -> 1800 | H56: =VLOOKUP(A56,ПТО!$A$2:$D$31,2,FALSE) -> шт. | I56: =VLOOKUP(A56,ПТО!$A$2:$D$31,3,FALSE) -> 1 | O56: Монтаж лестницы и калитки (вход на спортивную площадку). | R56: ТР
A57: =ПТО!A16 -> Установка новогодней елки | F57: =VLOOKUP(A57,ПТО!$A$2:$D$31,4,FALSE) -> 986 | H57: =VLOOKUP(A57,ПТО!$A$2:$D$31,2,FALSE) -> шт. | I57: =VLOOKUP(A57,ПТО!$A$2:$D$31,3,FALSE) -> 1 | O57: Установка новогодней елки | R57: ТР
A58: =ПТО!A17 -> 0 | F58: =VLOOKUP(A58,ПТО!$A$2:$D$31,4,FALSE) ->  | H58: =VLOOKUP(A58,ПТО!$A$2:$D$31,2,FALSE) ->  | I58: =VLOOKUP(A58,ПТО!$A$2:$D$31,3,FALSE) ->  | O58: 0 | R58: ТР
A59: =ПТО!A18 -> 0 | F59: =VLOOKUP(A59,ПТО!$A$2:$D$31,4,FALSE) ->  | H59: =VLOOKUP(A59,ПТО!$A$2:$D$31,2,FALSE) ->  | I59: =VLOOKUP(A59,ПТО!$A$2:$D$31,3,FALSE) ->  | O59: 0 | R59: ТР
A60: =ПТО!A19 -> 0 | F60: =VLOOKUP(A60,ПТО!$A$2:$D$31,4,FALSE) ->  | H60: =VLOOKUP(A60,ПТО!$A$2:$D$31,2,FALSE) ->  | I60: =VLOOKUP(A60,ПТО!$A$2:$D$31,3,FALSE) ->  | O60: 0 | R60: ТР
A61: =ПТО!A20 -> 0 | F61: =VLOOKUP(A61,ПТО!$A$2:$D$31,4,FALSE) ->  | H61: =VLOOKUP(A61,ПТО!$A$2:$D$31,2,FALSE) ->  | I61: =VLOOKUP(A61,ПТО!$A$2:$D$31,3,FALSE) ->  | O61: 0 | R61: ТР
A62: =ПТО!A21 -> 0 | F62: =VLOOKUP(A62,ПТО!$A$2:$D$31,4,FALSE) ->  | H62: =VLOOKUP(A62,ПТО!$A$2:$D$31,2,FALSE) ->  | I62: =VLOOKUP(A62,ПТО!$A$2:$D$31,3,FALSE) ->  | O62: 0 | R62: ТР
A63: =ПТО!A22 -> 0 | F63: =VLOOKUP(A63,ПТО!$A$2:$D$31,4,FALSE) ->  | H63: =VLOOKUP(A63,ПТО!$A$2:$D$31,2,FALSE) ->  | I63: =VLOOKUP(A63,ПТО!$A$2:$D$31,3,FALSE) ->  | O63: 0 | R63: ТР
A64: =ПТО!A23 -> 0 | F64: =VLOOKUP(A64,ПТО!$A$2:$D$31,4,FALSE) ->  | H64: =VLOOKUP(A64,ПТО!$A$2:$D$31,2,FALSE) ->  | I64: =VLOOKUP(A64,ПТО!$A$2:$D$31,3,FALSE) ->  | O64: 0 | R64: ТР
A65: =ПТО!A24 -> 0 | F65: =VLOOKUP(A65,ПТО!$A$2:$D$31,4,FALSE) ->  | H65: =VLOOKUP(A65,ПТО!$A$2:$D$31,2,FALSE) ->  | I65: =VLOOKUP(A65,ПТО!$A$2:$D$31,3,FALSE) ->  | O65: 0 | R65: ТР
A66: =ПТО!A25 -> 0 | F66: =VLOOKUP(A66,ПТО!$A$2:$D$31,4,FALSE) ->  | H66: =VLOOKUP(A66,ПТО!$A$2:$D$31,2,FALSE) ->  | I66: =VLOOKUP(A66,ПТО!$A$2:$D$31,3,FALSE) ->  | O66: 0 | R66: ТР
A67: =ПТО!A26 -> 0 | F67: =VLOOKUP(A67,ПТО!$A$2:$D$31,4,FALSE) ->  | H67: =VLOOKUP(A67,ПТО!$A$2:$D$31,2,FALSE) ->  | I67: =VLOOKUP(A67,ПТО!$A$2:$D$31,3,FALSE) ->  | O67: 0 | R67: ТР
A68: =ПТО!A27 -> 0 | F68: =VLOOKUP(A68,ПТО!$A$2:$D$31,4,FALSE) ->  | H68: =VLOOKUP(A68,ПТО!$A$2:$D$31,2,FALSE) ->  | I68: =VLOOKUP(A68,ПТО!$A$2:$D$31,3,FALSE) ->  | O68: 0 | R68: ТР
A69: =ПТО!A28 -> 0 | F69: =VLOOKUP(A69,ПТО!$A$2:$D$31,4,FALSE) ->  | H69: =VLOOKUP(A69,ПТО!$A$2:$D$31,2,FALSE) ->  | I69: =VLOOKUP(A69,ПТО!$A$2:$D$31,3,FALSE) ->  | O69: 0 | R69: ТР
A70: =ПТО!A29 -> 0 | F70: =VLOOKUP(A70,ПТО!$A$2:$D$31,4,FALSE) ->  | H70: =VLOOKUP(A70,ПТО!$A$2:$D$31,2,FALSE) ->  | I70: =VLOOKUP(A70,ПТО!$A$2:$D$31,3,FALSE) ->  | O70: 0 | R70: ТР
A71: =ПТО!A30 -> 0 | F71: =VLOOKUP(A71,ПТО!$A$2:$D$31,4,FALSE) ->  | H71: =VLOOKUP(A71,ПТО!$A$2:$D$31,2,FALSE) ->  | I71: =VLOOKUP(A71,ПТО!$A$2:$D$31,3,FALSE) ->  | O71: 0 | R71: ТР
A72: =ПТО!A31 -> 0 | F72: =VLOOKUP(A72,ПТО!$A$2:$D$31,4,FALSE) ->  | H72: =VLOOKUP(A72,ПТО!$A$2:$D$31,2,FALSE) ->  | I72: =VLOOKUP(A72,ПТО!$A$2:$D$31,3,FALSE) ->  | O72: 0 | R72: ТР
A73: .
A74: ПРЕТЕНЗИИ ПО КАЧЕСТВУ РАБОТ
A75: Количество поступивших претензий, ед. | J75: =VLOOKUP(O75,АО,3,FALSE) -> 0 | O75: претензия1
A76: Количество удовлетворенных претензий, ед. | J76: =VLOOKUP(O76,АО,3,FALSE) -> 0 | O76: претензия2
A77: Количество претензий, в удовлетворении которых отказано, ед. | J77: =VLOOKUP(O77,АО,3,FALSE) -> 0 | O77: претензия3
A78: Сумма произведенного перерасчета, руб. | J78: =VLOOKUP(O78,АО,3,FALSE) -> 0 | O78: претензия4
A79: .
A80: КОММУНАЛЬНЫЕ УСЛУГИ
A81: Авансовые платежи потребителей (на начало периода), руб. | J81: =VLOOKUP(O81,АО,3,FALSE) -> 0 | O81: ку1
A82: Переходящие остатки денежных средств (на начало периода), руб. | J82: 0 | O82: ку2
A83: Задолженность потребителей (на начало периода), руб. | J83: 535274.59 | O83: ку3
A84: Авансовые платежи потребителей (на конец периода), руб. | J84: 0 | O84: ку4
A85: Переходящие остатки денежных средств (на конец периода), руб. | J85: 0 | O85: ку5
A86: Задолженность потребителей (на конец периода), руб. | J86: 421513.06 | O86: ку6
A87: Количество поступивших претензий, ед. | J87: 0 | O87: ку7
A88: Количество удовлетворенных претензий, ед. | J88: 0 | O88: ку8
A89: Количество претензий, в удовлетворении которых отказано, ед. | J89: 0 | O89: ку9
A90: Сумма произведенного перерасчета, руб. | J90: 0 | O90: ку10
A91: .
A92: ОБЪЕМЫ ПО КОММУНАЛЬНЫМ УСЛУГАМ
A93: Вид коммунальной услуги | D93: Факт предоставления | F93: Ед.изм. | G93: Начислено потребителям (руб.)
A94: =IF(VLOOKUP("эл",АО,3,FALSE)>0,"Электроснабжение",0) -> Электроснабжение | D94: =IF(VLOOKUP("эл",АО,3,FALSE)>0,VLOOKUP("эл",АО,3,FALSE),0) -> Предоставляется | F94: =IF(VLOOKUP("эл",АО,3,FALSE)>0,VLOOKUP("эл",АО,4,FALSE),0) -> кВт*ч | G94: =VLOOKUP("эл",АО,5,FALSE) -> 86806.11 | K94: =VLOOKUP("эл",АО,2,FALSE) -> Электроснабжение
A95: =IF(VLOOKUP("эл",АО,3,FALSE)>0,VLOOKUP("эл1",АО,2,FALSE),0) -> Общий объем потребления, нат. показ. | J95: =VLOOKUP(O95,АО,3,FALSE) -> 91374.85 | O95: эл1
A96: =IF(VLOOKUP("эл",АО,3,FALSE)>0,VLOOKUP("эл2",АО,2,FALSE),0) -> Оплачено потребителями, руб. | J96: 119278.81 | O96: эл2
A97: =IF(VLOOKUP("эл",АО,3,FALSE)>0,VLOOKUP("эл3",АО,2,FALSE),0) -> Задолженность потребителей, руб. | J97: 0 | O97: эл3
A98: =IF(VLOOKUP("эл",АО,3,FALSE)>0,VLOOKUP("эл4",АО,2,FALSE),0) -> Начислено поставщиком (поставщиками) коммунального ресурса, руб. | J98: 86806.11 | O98: эл4
A99: =IF(VLOOKUP("эл",АО,3,FALSE)>0,VLOOKUP("эл5",АО,2,FALSE),0) -> Оплачено поставщику (поставщикам) коммунального ресурса, руб. | J99: 86806.11 | O99: эл5
A100: =IF(VLOOKUP("эл",АО,3,FALSE)>0,VLOOKUP("эл6",АО,2,FALSE),0) -> Задолженность перед поставщиком (поставщиками) коммунального ресурса, руб. | J100: 0 | O100: эл6
A101: =IF(VLOOKUP("эл",АО,3,FALSE)>0,VLOOKUP("эл7",АО,2,FALSE),0) -> Размер пени и штрафов, уплаченных поставщику (поставщикам) коммунального ресурса, руб. | J101: 0 | O101: эл7
A102: =IF(VLOOKUP("хвс",АО,3,FALSE)>0,"Холодное водоснабжение",0) -> Холодное водоснабжение | D102: =IF(VLOOKUP("хвс",АО,3,FALSE)>0,VLOOKUP("хвс",АО,3,FALSE),0) -> Предоставляется | F102: =IF(VLOOKUP("хвс",АО,3,FALSE)>0,VLOOKUP("хвс",АО,4,FALSE),0) -> куб.м. | G102: =VLOOKUP("хвс",АО,5,FALSE) -> 58364.28
A103: =IF(VLOOKUP("хвс",АО,3,FALSE)>0,VLOOKUP(O103,АО,2,FALSE),0) -> Общий объем потребления, нат. показ. | J103: =VLOOKUP(O103,АО,3,FALSE) -> 4855.6 | O103: хвс1
A104: Оплачено потребителями, руб. | J104: 54496.36 | O104: хвс2
A105: Задолженность потребителей, руб. | J105: 3867.92 | O105: хвс3
A106: Начислено поставщиком (поставщиками) коммунального ресурса, руб. | J106: 58364.28 | O106: хвс4
A107: Оплачено поставщику (поставщикам) коммунального ресурса, руб. | J107: 58364.28 | O107: хвс5
A108: Задолженность перед поставщиком (поставщиками) коммунального ресурса, руб. | J108: 0 | O108: хвс6
A109: Размер пени и штрафов, уплаченных поставщику (поставщикам) коммунального ресурса, руб. | J109: 0 | O109: хвс7
A110: =IF(VLOOKUP("воо",АО,3,FALSE)>0,"Водоотведение",0) -> Водоотведение | D110: =IF(VLOOKUP("воо",АО,3,FALSE)>0,VLOOKUP("воо",АО,3,FALSE),0) -> Предоставляется | F110: =IF(VLOOKUP("воо",АО,3,FALSE)>0,VLOOKUP("воо",АО,4,FALSE),0) -> куб.м. | G110: =VLOOKUP("воо",АО,5,FALSE) -> 104892.68
A111: =IF(VLOOKUP("воо",АО,3,FALSE)>0,VLOOKUP(O111,АО,2,FALSE),0) -> Общий объем потребления, нат. показ. | J111: =VLOOKUP(O111,АО,3,FALSE) -> 8147 | O111: воо1
A112: Оплачено потребителями, руб. | J112: 92197.19 | O112: воо2
A113: Задолженность потребителей, руб. | J113: 12695.49 | O113: воо3
A114: Начислено поставщиком (поставщиками) коммунального ресурса, руб. | J114: 104892.68 | O114: воо4
A115: Оплачено поставщику (поставщикам) коммунального ресурса, руб. | J115: 104892.68 | O115: воо5
A116: Задолженность перед поставщиком (поставщиками) коммунального ресурса, руб. | J116: 0 | O116: воо6
A117: Размер пени и штрафов, уплаченных поставщику (поставщикам) коммунального ресурса, руб. | J117: 0 | O117: воо7
A118: =IF(VLOOKUP("тко",АО,3,FALSE)>0,"Обращение с ТКО",0) -> 0 | D118: =IF(VLOOKUP("тко",АО,3,FALSE)>0,VLOOKUP("тко",АО,3,FALSE),0) -> 0 | F118: =IF(VLOOKUP("тко",АО,3,FALSE)>0,VLOOKUP("тко",АО,4,FALSE),0) -> 0 | G118: =VLOOKUP("тко",АО,5,FALSE) -> 0
A119: =IF(VLOOKUP("тко",АО,3,FALSE)>0,VLOOKUP(O119,АО,2,FALSE),0) -> 0 | J119: =VLOOKUP(O119,АО,3,FALSE) -> 0 | O119: тко1
A120: 0 | J120: 0 | O120: тко2
A121: 0 | J121: 0 | O121: тко3
A122: 0 | J122: 0 | O122: тко4
A123: 0 | J123: 0 | O123: тко5
A124: 0 | J124: 0 | O124: тко6
A125: 0 | J125: 0 | O125: тко7
A126: =IF(VLOOKUP("гвс",АО,3,FALSE)>0,"Горячее водоснабжение",0) -> 0 | D126: =IF(VLOOKUP("гвс",АО,3,FALSE)>0,VLOOKUP("гвс",АО,3,FALSE),0) -> 0 | F126: =IF(VLOOKUP("гвс",АО,3,FALSE)>0,VLOOKUP("гвс",АО,4,FALSE),0) -> 0 | G126: =VLOOKUP("гвс",АО,5,FALSE) -> 0
A127: =IF(VLOOKUP("гвс",АО,3,FALSE)>0,VLOOKUP(O127,АО,2,FALSE),0) -> 0 | J127: =VLOOKUP(O127,АО,3,FALSE) -> 0 | O127: гвс1
A128: 0 | J128: 0 | O128: гвс2
A129: 0 | J129: 0 | O129: гвс3
A130: 0 | J130: 0 | O130: гвс4
A131: 0 | J131: 0 | O131: гвс5
A132: 0 | J132: 0 | O132: гвс6
A133: 0 | J133: 0 | O133: гвс7
A134: =IF(VLOOKUP("отопление",АО,3,FALSE)>0,"Отопление",0) -> Отопление | D134: =IF(VLOOKUP("отопление",АО,3,FALSE)>0,VLOOKUP("отопление",АО,3,FALSE),0) -> Предоставляется | F134: =IF(VLOOKUP("отопление",АО,3,FALSE)>0,VLOOKUP("отопление",АО,4,FALSE),0) -> Гкал | G134: =VLOOKUP("отопление",АО,5,FALSE) -> 837467.8
A135: =IF(VLOOKUP("отопление",АО,3,FALSE)>0,VLOOKUP(O135,АО,2,FALSE),0) -> Общий объем потребления, нат. показ. | J135: =VLOOKUP(O135,АО,3,FALSE) -> 737.42 | O135: отопление1
A136: Оплачено потребителями, руб. | J136: 908202.43 | O136: отопление2
A137: Задолженность потребителей, руб. | J137: 0 | O137: отопление3
A138: Начислено поставщиком (поставщиками) коммунального ресурса, руб. | J138: 837467.8 | O138: отопление4
A139: Оплачено поставщику (поставщикам) коммунального ресурса, руб. | J139: 837467.8 | O139: отопление5
A140: Задолженность перед поставщиком (поставщиками) коммунального ресурса, руб. | J140: 0 | O140: отопление6
A141: Размер пени и штрафов, уплаченных поставщику (поставщикам) коммунального ресурса, руб. | J141: 0 | O141: отопление7
A143: ПРЕТЕНЗИОННО-ИСКОВАЯ РАБОТА
A144: Направлено претензий потребителям-должникам | J144: =VLOOKUP(O144,юр,3,FALSE) -> 0 | O144: юр1
A145: Направлено исковых заявлений | J145: =VLOOKUP(O145,юр,3,FALSE) -> 3 | O145: юр2
A146: Получено денежных средств по результатам претензионно-исковой работы, руб. | J146: =VLOOKUP(O146,юр,3,FALSE) -> 98453 | O146: юр3
A149: Отчет об исполнении договора управления многоквартирного дома Байкальская, 307 в части текущего ремонта
A151: Начала отчетного периода | E151: 2016-01-01
A152: Конец отчетного периода | E152: 2016-12-31
A154: Перерасход (+) или экономия (-) средств в 2015 году (руб.) | E154: =ПТО!G1 -> 31243.46
A155: Начислено за текущий ремонт в 2016 году (руб.): | E155: =J13 -> 127442.4
N156: =INDEX($O$28:$O$42,SMALL(IF(#REF!=R28:R42,ROW(O28:O52)-27,""),ROW()-133)) -> 
A157: Наименование работы | F157: Годовая фактическая стоимость работ/услуг (руб.) | H157: Периодичность выполнения работ/оказания услуг | I157: Количество работ (услуг) в детальном перечне
A158: =IF(N158>0,N158,0) -> Корректировка платы за отопление. | F158: =IF(ISERROR(VLOOKUP(A158,$A$28:$J$72,6,FALSE)),0,VLOOKUP(A158,$A$28:$J$72,6,FALSE)) -> -75094.78 | H158: =VLOOKUP(A158,$A$28:$J$72,8,FALSE) -> Гкал | I158: =VLOOKUP(A158,$A$28:$J$72,9,FALSE) -> 75.86 | M158: ТР | N158: =INDEX($O$43:$O$72,SMALL(IF($M$158=R43:R72,ROW(O43:O72)-42,""),ROW()-157)) -> Корректировка платы за отопление.
A159: Техническое освидетельствование лифта. | F159: 15000 | H159: шт. | I159: 2 | M159: ТР | N159: Техническое освидетельствование лифта.
A160: Вывоз снега с придомовой территории в феврале. | F160: 7798.35 | H160: м/час | I160: 31 | M160: ТР | N160: Вывоз снега с придомовой территории в феврале.
A161: =IF(N161>0,N161,0) -> Проектирование, монтаж узла учета тепловой энергии. | F161: 120319.41 | H161: шт. | I161: 1 | M161: ТР | N161: Проектирование, монтаж узла учета тепловой энергии.
A162: Благоустройство территории (посадка цветов). | F162: 537 | H162: шт. | I162: =VLOOKUP(A162,$A$28:$J$72,9,FALSE) -> 23 | M162: ТР | N162: Благоустройство территории (посадка цветов).
A163: Замена платы привода дверей в пассажирском лифте. | F163: 26950 | H163: шт. | I163: =VLOOKUP(A163,$A$28:$J$72,9,FALSE) -> 1 | M163: ТР | N163: Замена платы привода дверей в пассажирском лифте.
A164: =IF(N164>0,N164,0) -> Монтаж охранной сигнализации ИТП. | F164: =IF(ISERROR(VLOOKUP(A164,$A$28:$J$72,6,FALSE)),0,VLOOKUP(A164,$A$28:$J$72,6,FALSE)) -> 17233 | H164: шт. | I164: =VLOOKUP(A164,$A$28:$J$72,9,FALSE) -> 1 | M164: ТР | N164: Монтаж охранной сигнализации ИТП.
A165: Монтаж дверей (вход в подвал). | F165: 26000 | H165: шт. | I165: 2 | M165: ТР | N165: Монтаж дверей (вход в подвал).
A166: Восстановление радиаторов отопления в подъезде в замен украденных. | F166: 34670 | H166: секций | I166: 57 | M166: ТР | N166: Восстановление радиаторов отопления в подъезде в замен украденных.
A167: Покраска стен в подъезде в цокольном и на 1-ом этаже. | F167: 4960 | H167: м2 | I167: 189.5 | M167: ТР | N167: Покраска стен в подъезде в цокольном и на 1-ом этаже.
A168: Монтаж щетинистого покрытия на крыльце. | F168: 3900 | H168: м.п. | I168: 14 | M168: ТР | N168: Монтаж щетинистого покрытия на крыльце.
A169: Устройство катка на детской площадке. | F169: 2136 | H169: шт. | I169: 1 | M169: ТР | N169: Устройство катка на детской площадке.
A170: Монтаж гирлянд на световые опоры на детской площадке. | F170: 1045 | H170: м.п. | I170: 210 | M170: ТР | N170: Монтаж гирлянд на световые опоры на детской площадке.
A171: Монтаж лестницы и калитки (вход на спортивную площадку). | F171: 1800 | H171: шт. | I171: 1 | M171: ТР | N171: Монтаж лестницы и калитки (вход на спортивную площадку).
A172: Установка новогодней елки | F172: 986 | H172: шт. | I172: 1 | M172: ТР | N172: Установка новогодней елки
A173: 0 | F173: 0 | M173: ТР | N173: 0
A174: 0 | F174: 0 | M174: ТР | N174: 0
A175: 0 | F175: 0 | M175: ТР | N175: 0
A176: 0 | F176: 0 | M176: ТР | N176: 0
A177: 0 | F177: 0 | M177: ТР | N177: 0
A178: 0 | F178: 0 | M178: ТР | N178: 0
A179: 0 | F179: 0 | M179: ТР | N179: 0
A180: 0 | F180: 0 | M180: ТР | N180: 0
A181: 0 | F181: 0 | M181: ТР | N181: 0
A182: 0 | F182: 0 | M182: ТР | N182: 0
A183: 0 | F183: 0 | M183: ТР | N183: 0
A184: 0 | F184: 0 | M184: ТР | N184: 0
A185: 0 | F185: 0 | M185: ТР | N185: 0
A186: =IF(N186>0,N186,0) -> 0 | F186: 0 | M186: ТР | N186: 0
A187: 0 | F187: 0 | M187: ТР | N187: 0
A188: .
A189: .
A190: Итого выполнено работ в 2016 году (руб.): | E190: =SUM(F158:G187) -> 188239.98
A191: Перерасход (+) или экономия (-) средств по состоянию на 31 декабря 2016 года (руб.): | E191: =E190+E154-E155 -> 92041.04
A192: .
A193: В 2017 году управляющая компания предлагает выполнить за счет средств текущего ремонта общего имущества многоквартирного дома следующие мероприятия (приблизительной стоимостью):
A194: =ПТО!F12 -> - поверка (замена) манометров и термометров | H194: =ПТО!G12 -> 2500 | I194: руб.
A195: =ПТО!F13 -> - обслуживание ТП и кабельных линий | H195: =ПТО!G13 -> 6000 | I195: руб.
A196: =ПТО!F14 -> - передача бесхозяйных инженерных сетей | H196: =ПТО!G14 -> 5000 | I196: руб.
A197: =ПТО!F15 -> - непредвиденные затраты (компенсаторы, арматура, эл.арматура, замки и т.д.) | H197: =ПТО!G15 -> 5000 | I197: руб.
A198: =ПТО!F16 -> - мероприятия по энергоресурсосбережению | H198: =ПТО!G16 -> 20000 | I198: руб.
A199: =ПТО!F17 -> - установка новогодней елки | H199: =ПТО!G17 -> 1500 | I199: руб.
A200: =ПТО!F18 -> - благоустройство территории (посадка цветов, саженцев, покраска бордюров) | H200: =ПТО!G18 -> 14000 | I200: руб.
A201: =ПТО!F19 -> - монтаж урны | H201: =ПТО!G19 -> 4000 | I201: руб.
A202: =ПТО!F20 -> - монтаж детского спортивного оборудования | H202: =ПТО!G20 -> 30000 | I202: руб.
A203: =ПТО!F21 -> - монтаж дополнительного уличного освещения | H203: =ПТО!G21 -> 15000 | I203: руб.
A204: =ПТО!F22 -> - монтаж щетинистого и коврового покрытия | H204: =ПТО!G22 -> 5000 | I204: руб.
A205: =ПТО!F23 -> - покраска распределительных узлов | H205: =ПТО!G23 -> 3000 | I205: руб.
A206: =ПТО!F24 -> - замена подвальных дверей на антивандальные | H206: =ПТО!G24 -> 24000 | I206: руб.
A207: =ПТО!F25 -> - монтаж ограждения | H207: =ПТО!G25 -> 10000 | I207: руб.
A208: =ПТО!F26 -> - вывоз снега с придомовой территории | H208: =ПТО!G26 -> 15000 | I208: руб.
... 6 more rows

Sheet ПТО (hidden)
A1: Наименование работы | B1: Периодичность выполнения работ/оказания услуг | C1: Количество работ (услуг) в детальном перечне | D1: Годовая фактическая стоимость работ/услуг (руб.) | F1: Перерасход (+) или экономия (-) средств в 2015 году (руб.) | G1: 31243.46
A2: Корректировка платы за отопление. | B2: Гкал | C2: 75.86 | D2: -75094.78 | L2: =IF(A2>0,"ТР",0) -> ТР
A3: Техническое освидетельствование лифта. | B3: шт. | C3: 2 | D3: 15000 | L3: ТР
A4: Вывоз снега с придомовой территории в феврале. | B4: м/час | C4: 31 | D4: 7798.35 | L4: ТР
A5: Проектирование, монтаж узла учета тепловой энергии. | B5: шт. | C5: 1 | D5: 120319.41 | L5: ТР
A6: Благоустройство территории (посадка цветов). | B6: шт. | C6: 23 | D6: 537 | L6: ТР
A7: Замена платы привода дверей в пассажирском лифте. | B7: шт. | C7: 1 | D7: 26950 | L7: ТР
A8: Монтаж охранной сигнализации ИТП. | B8: шт. | C8: 1 | D8: 17233 | L8: ТР
A9: Монтаж дверей (вход в подвал). | B9: шт. | C9: 2 | D9: 26000 | L9: ТР
A10: Восстановление радиаторов отопления в подъезде в замен украденных. | B10: секций | C10: 57 | D10: 34670 | L10: ТР
A11: Покраска стен в подъезде в цокольном и на 1-ом этаже. | B11: м2 | C11: 189.5 | D11: 4960 | F11: В 2020 году управляющая компания предлагает выполнить за счет средств текущего ремонта общего имущества многоквартирного дома следующие мероприятия (приблизительной стоимостью): | L11: ТР
A12: Монтаж щетинистого покрытия на крыльце. | B12: м.п. | C12: 14 | D12: 3900 | F12: - поверка (замена) манометров и термометров | G12: 2500 | L12: ТР
A13: Устройство катка на детской площадке. | B13: шт. | C13: 1 | D13: 2136 | F13: - обслуживание ТП и кабельных линий | G13: 6000 | L13: ТР
A14: Монтаж гирлянд на световые опоры на детской площадке. | B14: м.п. | C14: 210 | D14: 1045 | F14: - передача бесхозяйных инженерных сетей | G14: 5000 | L14: ТР
A15: Монтаж лестницы и калитки (вход на спортивную площадку). | B15: шт. | C15: 1 | D15: 1800 | F15: - непредвиденные затраты (компенсаторы, арматура, эл.арматура, замки и т.д.) | G15: 5000 | L15: ТР
A16: Установка новогодней елки | B16: шт. | C16: 1 | D16: 986 | F16: - мероприятия по энергоресурсосбережению | G16: 20000 | L16: ТР
F17: - установка новогодней елки | G17: 1500 | L17: 0
F18: - благоустройство территории (посадка цветов, саженцев, покраска бордюров) | G18: =4000+5000+5000 -> 14000 | L18: 0
F19: - монтаж урны | G19: 4000 | L19: 0
F20: - монтаж детского спортивного оборудования | G20: 30000 | L20: 0
F21: - монтаж дополнительного уличного освещения | G21: 15000 | L21: 0
F22: - монтаж щетинистого и коврового покрытия | G22: 5000 | L22: 0
F23: - покраска распределительных узлов | G23: 3000 | L23: =IF(A23>0,"ТР",0) -> 0
F24: - замена подвальных дверей на антивандальные | G24: 24000 | L24: 0
F25: - монтаж ограждения | G25: 10000 | L25: 0
F26: - вывоз снега с придомовой территории | G26: 15000 | L26: 0
F27: - монтаж сетки забора на детской площадке | G27: 10000 | L27: 0
F28: - восстановление дверных ручек дверей на проходных балконов | G28: 4000 | L28: 0
F29: - монтаж видеонаблюдения | G29: 200000 | L29: 0
L30: 0
L31: 0
A39: Работы, выполняемые для надлежащего содержания внутридомовых инженерных систем и конструктивных элементов дома | B39: 445334.1 | C39: Ежемесячно | D39: 12 | L39: =IF(A39>0,"СОД",0) -> СОД | M39: =A39 -> Работы, выполняемые для надлежащего содержания внутридомовых инженерных систем и конструктивных элементов дома | N39: =B39 -> 445334.1 | O39: =C39 -> Ежемесячно | P39: =D39 -> 12
A40: Работы по содержанию лифта (лифтов) | B40: 168000 | C40: Ежемесячно | D40: 12 | L40: =IF(A40>0,"СОД",0) -> СОД | M40: =A40 -> Работы по содержанию лифта (лифтов) | N40: =B40 -> 168000 | O40: =C40 -> Ежемесячно | P40: =D40 -> 12
A41: Работы по содержанию земельного участка с элементами озеленения и благоустройства, иными объектами, предназначенными для обслуживания и эксплуатации многоквартирного дома | B41: 55377.93 | C41: В соответствии с графиком | D41: 12 | L41: СОД | M41: Работы по содержанию земельного участка с элементами озеленения и благоустройства, иными объектами, предназначенными для обслуживания и эксплуатации многоквартирного дома | N41: 55377.93 | O41: В соответствии с графиком | P41: 12
A42: Работы, выполняемые для надлежащего содержания электрооборудования дома | B42: 73279.38 | C42: Ежемесячно | D42: 12 | L42: СОД | M42: Работы, выполняемые для надлежащего содержания электрооборудования дома | N42: 73279.38 | O42: Ежемесячно | P42: 12
L43: 0 | M43: 0 | N43: 0 | O43: 0 | P43: 0
A44: Обеспечение устранения аварий на внутридомовых инженерных системах в многоквартирном доме | B44: 50331.48 | C44: Круглосуточно | D44: 12 | L44: СОД | M44: Обеспечение устранения аварий на внутридомовых инженерных системах в многоквартирном доме | N44: 50331.48 | O44: Круглосуточно | P44: 12
A45: Работы по содержанию помещений, входящих в состав общего имущества в многоквартирном доме | B45: 155538.21 | C45: В соответствии с графиком | D45: 12 | L45: СОД | M45: Работы по содержанию помещений, входящих в состав общего имущества в многоквартирном доме | N45: 155538.21 | O45: В соответствии с графиком | P45: 12
A46: Расходы на содержание информационных систем, обеспечивающих сбор, обработку и хранение данных о платежах, выставление платежных документов, снятие показаний приборов учета и т.п. | B46: 63256.24 | C46: Ежемесячно | D46: 12 | L46: СОД | M46: Расходы на содержание информационных систем, обеспечивающих сбор, обработку и хранение данных о платежах, выставление платежных документов, снятие показаний приборов учета и т.п. | N46: 63256.24 | O46: Ежемесячно | P46: 12
A47: Работы по обеспечению вывоза бытовых отходов | B47: 111646.58 | C47: В соответствии с графиком | D47: 12 | L47: СОД | M47: Работы по обеспечению вывоза бытовых отходов | N47: 111646.58 | O47: В соответствии с графиком | P47: 12
L48: 0 | M48: 0 | N48: 0 | O48: 0 | P48: 0
L49: 0 | M49: 0 | N49: 0 | O49: 0 | P49: 0
L50: 0 | M50: 0 | N50: 0 | O50: 0 | P50: 0
L51: 0 | M51: 0 | N51: 0 | O51: 0 | P51: 0
L52: 0 | M52: 0 | N52: 0 | O52: 0 | P52: 0
L53: 0 | M53: 0 | N53: 0 | O53: 0 | P53: 0

Sheet Абонентский отдел (hidden)
B1: ОБЩАЯ ИНФОРМАЦИЯ
A2: общая1 | B2: Авансовые платежи потребителей (на начало периода), руб. | C2: 0 | D2: указать в случае переплаты на начало отчетного года
A3: общая2 | B3: Переходящие остатки денежных средств (на начало периода), руб. | C3: 0 | D3: указывать ничего не нужно
A4: общая3 | B4: Задолженность потребителей (на начало периода), руб. | C4: 290389.84 | D4: указать в случае задолженности на начало отчетного года
A5: общая4 | B5: Начислено за услуги (работы) по содержанию и текущему ремонту, в том числе: | C5: =SUM(C6:C8) -> 1021952.59 | D5: указывать ничего не нужно
A6: общая5 | B6: за содержание дома, руб. | C6: 894510.19 | D6: указать сумму начислений по содержанию за отчетный год
A7: общая6 | B7: за текущий ремонт, руб. | C7: 127442.4 | D7: указать сумму начислений по ремонту за отчетный год
A8: общая7 | B8: за услуги управления, руб. | C8: 0 | D8: указать сумму начислений за услуги по управлению за отчетный год
A9: общая8 | B9: Получено денежных средств, в том числе: | C9: =SUM(C10:C14) -> 1111262.74 | D9: указывать ничего не нужно
A10: общая9 | B10: денежных средств от собственников/нанимателей помещений, руб. | C10: 1111262.74 | D10: указать в случае оплаты
A11: общая10 | B11: целевых взносов от собственников/нанимателей помещений, руб. | C11: 0 | D11: указать в случае оплаты
A12: общая11 | B12: субсидий, руб. | C12: 0 | D12: указать в случае оплаты
A13: общая12 | B13: денежных средств от использования общего имущества, руб. | C13: 0 | D13: указать в случае оплаты
A14: общая13 | B14: прочие поступления, руб. | C14: 0 | D14: указать в случае оплаты
A15: общая14 | B15: Всего денежных средств с учетом остатков, руб. | C15: =C9 -> 1111262.74 | D15: указывать ничего не нужно
A16: общая15 | B16: Авансовые платежи потребителей (на конец периода), руб. | C16: =IF(C2>0,IF(C2+C9-C5>0,C2+C9-C5,0),IF(C9-C5>0,IF(C4+C5-C9>0,0,C9-C5-C4),0)) -> 0 | D16: указывать ничего не нужно
A17: общая16 | B17: Переходящие остатки денежных средств (на конец периода), руб. | C17: 0 | D17: указывать ничего не нужно
A18: общая17 | B18: Задолженность потребителей (на конец периода), руб. | C18: =IF(C16>0,0,IF(C4>0,C4+C5-C9,C5-C2-C9)) -> 201079.69 | D18: указывать ничего не нужно
A19: пр | B19: ПРЕТЕНЗИИ ПО КАЧЕСТВУ РАБОТ
A20: претензия1 | B20: Количество поступивших претензий, ед. | C20: 0 | D20: указать в случае наличия
A21: претензия2 | B21: Количество удовлетворенных претензий, ед. | C21: 0 | D21: указать в случае наличия
A22: претензия3 | B22: Количество претензий, в удовлетворении которых отказано, ед. | C22: 0 | D22: указать в случае наличия
A23: претензия4 | B23: Сумма произведенного перерасчета, руб. | C23: 0 | D23: указать в случае наличия
A24: ку | B24: КОММУНАЛЬНЫЕ УСЛУГИ
A25: ку1 | B25: Авансовые платежи потребителей (на начало периода), руб. | C25: 0 | D25: указать в случае переплаты на начало отчетного года
A26: ку2 | B26: Переходящие остатки денежных средств (на начало периода), руб. | C26: 0 | D26: указывать ничего не нужно
A27: ку3 | B27: Задолженность потребителей (на начало периода), руб. | C27: 535274.59 | D27: указать в случае задолженности на начало отчетного года
A28: ку4 | B28: Авансовые платежи потребителей (на конец периода), руб. | C28: 0 | D28: указать в случае переплаты на конец отчетного года
A29: ку5 | B29: Переходящие остатки денежных средств (на конец периода), руб. | C29: 0 | D29: указывать ничего не нужно
A30: ку6 | B30: Задолженность потребителей (на конец периода), руб. | C30: 421513.06 | D30: указать в случае задолженности на конец отчетного года
A31: ку7 | B31: Количество поступивших претензий, ед. | C31: 0 | D31: указать в случае наличия
A32: ку8 | B32: Количество удовлетворенных претензий, ед. | C32: 0 | D32: указать в случае наличия
A33: ку9 | B33: Количество претензий, в удовлетворении которых отказано, ед. | C33: 0 | D33: указать в случае наличия
A34: ку10 | B34: Сумма произведенного перерасчета, руб. | C34: 0 | D34: указать в случае наличия
A35: о | B35: ОБЪЕМЫ ПО КОММУНАЛЬНЫМ УСЛУГАМ
A36: о1 | B36: Вид коммунальной услуги | C36: Факт предоставления | D36: Ед.изм. | E36: Начислено потребителям (руб.)
A37: эл | B37: Электроснабжение | C37: =IF(E37>0,"Предоставляется",0) -> Предоставляется | D37: кВт*ч | E37: 86806.11 | F37: указать сумму начисления жителям со стороны УК
A38: эл1 | B38: Общий объем потребления, нат. показ. | C38: 91374.85 | D38: указать объем потребления кВт*ч
A39: эл2 | B39: Оплачено потребителями, руб. | C39: 119278.81 | D39: указать сумму оплаты за услугу жителями
A40: эл3 | B40: Задолженность потребителей, руб. | C40: =IF(E37-C39<0,0,E37-C39) -> 0 | D40: указывать ничего не нужно
A41: эл4 | B41: Начислено поставщиком (поставщиками) коммунального ресурса, руб. | C41: =E37 -> 86806.11 | D41: указывать ничего не нужно
A42: эл5 | B42: Оплачено поставщику (поставщикам) коммунального ресурса, руб. | C42: =E37 -> 86806.11 | D42: указывать ничего не нужно
A43: эл6 | B43: Задолженность перед поставщиком (поставщиками) коммунального ресурса, руб. | C43: =IF(C41-C42<=0,,C41-C42) -> 0 | D43: указывать ничего не нужно
A44: эл7 | B44: Размер пени и штрафов, уплаченных поставщику (поставщикам) коммунального ресурса, руб. | C44: 0 | D44: указывать ничего не нужно
A45: хвс | B45: Холодное водоснабжение | C45: =IF(E45>0,"Предоставляется",0) -> Предоставляется | D45: куб.м. | E45: 58364.28 | F45: указать сумму начисления жителям со стороны УК
A46: хвс1 | B46: Общий объем потребления, нат. показ. | C46: 4855.6 | D46: указать объем потребления куб.м.
A47: хвс2 | B47: Оплачено потребителями, руб. | C47: 54496.36 | D47: указать сумму оплаты за услугу жителями
A48: хвс3 | B48: Задолженность потребителей, руб. | C48: =IF(E45-C47<0,0,E45-C47) -> 3867.92 | D48: указывать ничего не нужно
A49: хвс4 | B49: Начислено поставщиком (поставщиками) коммунального ресурса, руб. | C49: =E45 -> 58364.28 | D49: указывать ничего не нужно
A50: хвс5 | B50: Оплачено поставщику (поставщикам) коммунального ресурса, руб. | C50: =E45 -> 58364.28 | D50: указывать ничего не нужно
A51: хвс6 | B51: Задолженность перед поставщиком (поставщиками) коммунального ресурса, руб. | C51: =IF(C49-C50<=0,,C49-C50) -> 0 | D51: указывать ничего не нужно
A52: хвс7 | B52: Размер пени и штрафов, уплаченных поставщику (поставщикам) коммунального ресурса, руб. | C52: 0 | D52: указывать ничего не нужно
A53: воо | B53: Водоотведение | C53: =IF(E53>0,"Предоставляется",0) -> Предоставляется | D53: куб.м. | E53: 104892.68 | F53: указать сумму начисления жителям со стороны УК
A54: воо1 | B54: Общий объем потребления, нат. показ. | C54: 8147 | D54: указать объем потребления куб.м.
A55: воо2 | B55: Оплачено потребителями, руб. | C55: 92197.19 | D55: указать сумму оплаты за услугу жителями
A56: воо3 | B56: Задолженность потребителей, руб. | C56: =IF(E53-C55<0,0,E53-C55) -> 12695.49 | D56: указывать ничего не нужно
A57: воо4 | B57: Начислено поставщиком (поставщиками) коммунального ресурса, руб. | C57: =E53 -> 104892.68 | D57: указывать ничего не нужно
A58: воо5 | B58: Оплачено поставщику (поставщикам) коммунального ресурса, руб. | C58: =E53 -> 104892.68 | D58: указывать ничего не нужно
A59: воо6 | B59: Задолженность перед поставщиком (поставщиками) коммунального ресурса, руб. | C59: =IF(C57-C58<=0,,C57-C58) -> 0 | D59: указывать ничего не нужно
A60: воо7 | B60: Размер пени и штрафов, уплаченных поставщику (поставщикам) коммунального ресурса, руб. | C60: 0 | D60: указывать ничего не нужно
A61: тко | B61: Обращение с ТКО | C61: =IF(E61>0,"Предоставляется",0) -> 0 | D61: куб.м. | E61: 0 | F61: указать сумму начисления жителям со стороны УК
A62: тко1 | B62: Общий объем потребления, нат. показ. | C62: 0 | D62: указать объем потребления куб.м.
A63: тко2 | B63: Оплачено потребителями, руб. | C63: 0 | D63: указать сумму оплаты за услугу жителями
A64: тко3 | B64: Задолженность потребителей, руб. | C64: =IF(E61-C63<0,0,E61-C63) -> 0 | D64: указывать ничего не нужно
A65: тко4 | B65: Начислено поставщиком (поставщиками) коммунального ресурса, руб. | C65: =E61 -> 0 | D65: указывать ничего не нужно
A66: тко5 | B66: Оплачено поставщику (поставщикам) коммунального ресурса, руб. | C66: =E61 -> 0 | D66: указывать ничего не нужно
A67: тко6 | B67: Задолженность перед поставщиком (поставщиками) коммунального ресурса, руб. | C67: =IF(C65-C66<=0,,C65-C66) -> 0 | D67: указывать ничего не нужно
A68: тко7 | B68: Размер пени и штрафов, уплаченных поставщику (поставщикам) коммунального ресурса, руб. | C68: 0 | D68: указывать ничего не нужно
A69: гвс | B69: Горячее водоснабжение | C69: =IF(E69>0,"Предоставляется",0) -> 0 | D69: куб.м. | E69: 0 | F69: указать сумму начисления жителям со стороны УК
A70: гвс1 | B70: Общий объем потребления, нат. показ. | C70: 0 | D70: указать объем потребления куб.м.
A71: гвс2 | B71: Оплачено потребителями, руб. | C71: 0 | D71: указать сумму оплаты за услугу жителями
A72: гвс3 | B72: Задолженность потребителей, руб. | C72: =IF(E69-C71<0,0,E69-C71) -> 0 | D72: указывать ничего не нужно
A73: гвс4 | B73: Начислено поставщиком (поставщиками) коммунального ресурса, руб. | C73: =E69 -> 0 | D73: указывать ничего не нужно
A74: гвс5 | B74: Оплачено поставщику (поставщикам) коммунального ресурса, руб. | C74: =E69 -> 0 | D74: указывать ничего не нужно
A75: гвс6 | B75: Задолженность перед поставщиком (поставщиками) коммунального ресурса, руб. | C75: =IF(C73-C74<=0,,C73-C74) -> 0 | D75: указывать ничего не нужно
A76: гвс7 | B76: Размер пени и штрафов, уплаченных поставщику (поставщикам) коммунального ресурса, руб. | C76: 0 | D76: указывать ничего не нужно
A77: отопление | B77: Отопление | C77: =IF(E77>0,"Предоставляется",0) -> Предоставляется | D77: Гкал | E77: 837467.8 | F77: указать сумму начисления жителям со стороны УК
A78: отопление1 | B78: Общий объем потребления, нат. показ. | C78: 737.42 | D78: указать объем потребления Гкал
A79: отопление2 | B79: Оплачено потребителями, руб. | C79: 908202.43 | D79: указать сумму оплаты за услугу жителями
A80: отопление3 | B80: Задолженность потребителей, руб. | C80: =IF(E77-C79<0,0,E77-C79) -> 0 | D80: указывать ничего не нужно
A81: отопление4 | B81: Начислено поставщиком (поставщиками) коммунального ресурса, руб. | C81: =E77 -> 837467.8 | D81: указывать ничего не нужно
A82: отопление5 | B82: Оплачено поставщику (поставщикам) коммунального ресурса, руб. | C82: =E77 -> 837467.8 | D82: указывать ничего не нужно
A83: отопление6 | B83: Задолженность перед поставщиком (поставщиками) коммунального ресурса, руб. | C83: =IF(C81-C82<=0,,C81-C82) -> 0 | D83: указывать ничего не нужно
A84: отопление7 | B84: Размер пени и штрафов, уплаченных поставщику (поставщикам) коммунального ресурса, руб. | C84: 0 | D84: указывать ничего не нужно

Sheet Юридический отдел (hidden)
B1: ПРЕТЕНЗИОННО-ИСКОВАЯ РАБОТА
A2: юр1 | B2: Направлено претензий потребителям-должникам | C2: 0 | D2: указать в случае наличия
A3: юр2 | B3: Направлено исковых заявлений | C3: 3 | D3: указать в случае наличия
A4: юр3 | B4: Получено денежных средств по результатам претензионно-исковой работы | C4: 98453 | D4: указать в случае наличия
